Cogmind - Beta 16 *** ADVENTURER MODE // 2026.01.29 @ 18:40:13 Player: void Result: Destroyed by GX-5QG(R) with Subdweller Laser Performance ------------- Evolutions (0) 0 Regions Visited (3) 600 Robots Destroyed (21) 105 Value Destroyed (386) 386 Prototype IDs (0) 0 Alien Tech Used (0) 0 Bonus (0) 0 TOTAL SCORE: 1091 Bonus ------- None Cogmind --------- Core Integrity 0/250 Matter 300/300 Energy 100/100 System Corruption 1% Temperature Cool (6) Movement Core (150) Ox2 Location -10/Subcaves Parts ------- > --- POWER (1) -------- (None) > --- PROPULSION (2) --- (None) > --- UTILITY (2) ------ Heat Sink Small Storage Unit > --- WEAPON (2) ------- Light Assault Rifle Light Assault Rifle > --- INVENTORY (8) ---- Cryofiber Web Improved Sensor Array Improved Signal Interpreter Seismic Detector Medium Laser Datajack Peak State ------------ > --- POWER ------------ Ion Engine > --- PROPULSION ------- Aluminum Leg Aluminum Leg > --- UTILITY ---------- Heat Sink Small Storage Unit > --- WEAPON ----------- Medium Laser Medium Laser > --- INVENTORY -------- Weight Redist. System Sensor Array Improved Signal Interpreter Seismic Detector Light Assault Rifle Light Assault Rifle Datajack Mining Laser [Rating: 8] Favorites ----------- Power Ion Engine Engine Ion Engine Propulsion Aluminum Leg Leg Aluminum Leg Wheel Compact Wheel Utility Small Storage Unit Device Seismic Detector Storage Small Storage Unit Weapon Light Assault Rifle Energy Gun Medium Laser Ballistic Gun Light Assault Rifle Special Weapon Mining Laser Special Melee Weapon Datajack Build | -11 -10 -10 -10 ------- Run | Yrd Mat Min Sub Slots Evolved . | . . . . Power . | . . . . Propulsion . | . . . . Utility . | . . . . Weapon . | . . . . Parts Attached 16 | 8 4 3 1 Power 2 | 2 . . . Engine 2 | 2 . . . Core . | . . . . Reactor . | . . . . Propulsion 4 | 2 2 . . Treads . | . . . . Leg 2 | . 2 . . Wheel 2 | 2 . . . Hover . | . . . . Flight . | . . . . Utility 3 | 2 . 1 . Device 2 | 1 . 1 . Storage 1 | 1 . . . Processor . | . . . . Hackware . | . . . . Protection . | . . . . Artifact . | . . . . Weapon 7 | 2 2 2 1 Energy Gun 3 | . 1 2 . Energy Cannon . | . . . . Ballistic Gun 2 | 2 . . . Ballistic Cannon . | . . . . Launcher . | . . . . Special Weapon 1 | . . . 1 Impact Weapon . | . . . . Slashing Weapon . | . . . . Piercing Weapon . | . . . . Special Melee Weapon 1 | . 1 . . Unidentified Prototypes . | . . . . Corrupted Parts 1 | . 1 . . System Corruption 1 | . 1 . . Parts Lost 6 | . 1 . 5 Power 1 | . . . 1 Propulsion 3 | . 1 . 2 Utility . | . . . . Weapon 2 | . . . 2 Highest Loss Streak 3 | . 1 . 3 To Critical Strikes 1 | . . . 1 Average Backups 6 | . 6 7 7 Power . | . . . . Propulsion . | . . . . Utility 2 | . 2 3 4 Weapon 2 | . 3 3 2 Tool/Special . | . . . . Unused Backups 7 | . 2 2 3 Power . | . . . . Propulsion . | . . . . Utility 7 | . 2 2 3 Weapon . | . . . . Tool/Special . | . . . . Average Slot Usage (%) 94 | . 99 100 82 Engine 10 | . 14 14 2 Leg 15 | . 1 28 23 Wheel 10 | . 25 . . Device 14 | . 14 14 14 Storage 14 | . 14 14 14 Energy Gun 11 | . 2 19 16 Ballistic Gun 14 | . 24 8 4 Special Melee Weapon 1 | . . . 4 Peak Build Rating 8 | 7 7 8 8 Average Rating 6 | 5 6 7 6 On Entrance 5 | . 7 7 8 Avg Prop Armor Cover (%) . | . . . . Naked Turns . | . . . . Heaviest Build 15 | 13 14 15 15 Greatest Support 32 | 32 32 20 20 Greatest Overweight (x) 2 | . 1 . 2 Average Overweight (x) . | . . . . Largest Inventory Capacity 8 | 8 8 8 8 Average Capacity 7 | 7 8 8 8 Most Carried 8 | 2 8 8 8 Average Carried 6 | . 6 7 7 Final Capacity 8 | 8 8 8 8 Final Carried 8 | 2 8 8 6 Class Distribution -------------------- 100% | Mutant Dominant Class ---------------- Mutant | -10/Materials Mutant | -10/Mines Mutant | -10/Subcaves Resources | -11 -10 -10 -10 ----------- Run | Yrd Mat Min Sub Matter Collected 501 | 255 140 55 51 Remotely . | . . . . Salvage Created 585 | 74 262 144 105 Parts 48 | 10 22 10 6 Haulers Intercepted 1 | . 1 . . Recyclers Shooed . | . . . . Parts Field Recycled . | . . . . Retrieved Matter . | . . . . Parts Self-Destructed 4 | . . . 4 Prevented . | . . . . Parts Restored . | . . . . Kills | -11 -10 -10 -10 ------- Run | Yrd Mat Min Sub Combat Hostiles Destroyed 17 | . 8 6 3 Guns 17 | . 8 6 3 Classes Destroyed 8 | 1 4 1 2 Tunneler 3 | 3 . . . Hauler 1 | . 1 . . Watcher 1 | . 1 . . Swarmer 10 | . 6 3 1 Grunt 4 | . 2 2 . Sentry 1 | . . . 1 Subdweller 1 | . . . 1 Assembled 1 | . . 1 . Best Kill Streak 3 | 3 3 3 2 Combat Bots Only 3 | . 3 3 2 Max Kills in Single Turn 2 | 1 2 2 1 Gunslinging 1 | . 1 1 . Exploded . | . . . . Melee . | . . . . Uniques/NPCs Destroyed . | . . . . Combat | -11 -10 -10 -10 -------- Run | Yrd Mat Min Sub Hostile Shots Fired 106 | . 25 14 67 Missed 38 | . 9 3 26 Hits 68 | . 16 11 41 Projectile 68 | . 16 11 41 AOE 2 | . . . 2 Critical Strikes 1 | . . . 1 Damage Taken 834 | . 109 104 621 Core 250 | . 24 40 186 Absorbed by Shields . | . . . . Ignored by Resistances 247 | . 38 31 178 Core Remaining (%) 100 | 100 . . . Volleys Fired 54 | 7 21 15 11 Largest 2 | 2 2 2 2 Hottest 100 | 40 60 100 100 Shots Fired 100 | 14 42 30 14 Gun 97 | 14 42 30 11 Cannon . | . . . . Launcher . | . . . . Special 3 | . . . 3 Kinetic 71 | 14 36 15 6 Thermal 18 | . . 10 8 Explosive . | . . . . Electromagnetic 11 | . 6 5 . Robot Hit Streak 21 | 9 20 21 14 Robot Miss Streak 2 | 1 1 2 . Penetration Max . | . . . . Secondary Targets 4 | . 1 2 1 Max Gunslinging Chain 1 | . 1 1 1 Shots Hit Robots 85 | 12 39 24 10 Core Hits 37 | 6 17 10 4 Critical Kills . | . . . . Critical Parts Destroyed 1 | . . . 1 Critical Strikes 1 | . . . 1 Destroy 1 | . . . 1 Melee Attacks 4 | . 3 . 1 Impact . | . . . . Slashing . | . . . . Piercing . | . . . . Sneak Attacks 2 | . 2 . . Combat Hostiles . | . . . . Follow-up Attacks . | . . . . Damage Inflicted 748 | 97 310 247 94 Guns 746 | 97 310 247 92 Cannons . | . . . . Explosions . | . . . . Melee . | . . . . Ramming 2 | . . . 2 Kinetic 468 | 97 231 96 44 Thermal 149 | . . 101 48 Explosive . | . . . . Electromagnetic 129 | . 79 50 . Impact . | . . . . Slashing . | . . . . Piercing . | . . . . Highest Corruption 1 | . 1 1 1 Average Corruption 1 | . 1 1 1 Corruption Purged . | . . . . Corruption Blocked . | . . . . Effects 7 | . . 3 4 Message Errors 2 | . . 2 . Matter Fused 3 | . . . 3 Heat Flow Errors 1 | . . 1 . Parts Rejected 1 | . . . 1 Overload Shots . | . . . . Overflow Damage . | . . . . Projectiles . | . . . . Explosions . | . . . . Melee . | . . . . Knockbacks . | . . . . Impact . | . . . . Kinetic . | . . . . Secondary . | . . . . Self-Inflicted Damage 1 | . . . 1 Shots . | . . . . Rammed 1 | . . . 1 Targets Rammed 1 | . . . 1 Kicked . | . . . . Crushed . | . . . . Highest Temperature 352 | . 76 352 . Average Temperature 121 | . 34 151 . Received Heat Transfer 297 | . 36 69 192 Effects 3 | . . 3 . Interference 3 | . . 3 . Siege Activations . | . . . . Martial Activations . | . . . . Shielding Activations . | . . . . Robots Disrupted 1 | . . 1 . Combat Hostiles 1 | . . 1 . Robots Corrupted . | . . . . Combat Hostiles . | . . . . Parts Fried . | . . . . Impact Corruptions . | . . . . Robots Melted . | . . . . Combat Hostiles . | . . . . Parts Melted . | . . . . Heat Transferred 444 | . . 296 148 Parts Sabotaged . | . . . . Parts Stolen . | . . . . Parts Stripped . | . . . . Power Chain Reactions . | . . . . Alert | -11 -10 -10 -10 ------- Run | Yrd Mat Min Sub Maximum Alert Level . | . . . . Low Security (%) 100 | 100 100 100 . Level 1 . | . . . . Level 2 . | . . . . Level 3 . | . . . . Level 4 . | . . . . Level 5 . | . . . . High Security . | . . . . Max Security . | . . . . Peak Influence 130 | 10 130 105 . Initial 35 | . . 35 . Average 53 | 1 53 68 . Influence Increases 448 | 15 258 135 40 Destroy 0b10 Robot/C 300 | . 160 100 40 Destroy 0b10 Robot/NC 25 | 15 10 . . Destroy Leader 54 | . 34 20 . Successful Hack 24 | . 24 . . Lose Combat Pursuer 45 | . 30 15 . Influence Decreases 428 | 15 151 212 50 Entered New Map 90 | . . 72 18 Time Decay 326 | 15 141 140 30 Lost Part 12 | . 10 . 2 Squads Dispatched 1 | . . 1 . Investigation 1 | . . 1 . Extermination . | . . . . Reinforcement . | . . . . Assault . | . . . . Garrison . | . . . . Intercept . | . . . . Searches Triggered . | . . . . Construction Impeded . | . . . . Haulers Reinforced . | . . . . Active Scanning Responses . | . . . . Cargo Convoy Interrupts . | . . . . Stealth | -11 -10 -10 -10 --------- Run | Yrd Mat Min Sub Distress Signals 2 | . 2 . . Communications Jammed . | . . . . Distress Signals . | . . . . Times Spotted 26 | . 12 6 8 Peak Tracking Total 5 | . 5 2 4 Tactical Retreats 2 | . 1 1 . Traps | -11 -10 -10 -10 ------- Run | Yrd Mat Min Sub Traps Triggered 1 | . 1 . . Indirectly . | . . . . Trap Hack Attempts . | . . . . Triggered . | . . . . Disarmed . | . . . . Reprogrammed . | . . . . Reused . | . . . . Traps Extracted . | . . . . Installed . | . . . . Triggered . | . . . . Machines | -11 -10 -10 -10 ---------- Run | Yrd Mat Min Sub Machines Disabled . | . . . . Max in Single Turn . | . . . . Machines Repaired . | . . . . Machines Dismantled . | . . . . Machines Sabotaged . | . . . . Overloaded Fab Kills . | . . . . Hacking | -11 -10 -10 -10 --------- Run | Yrd Mat Min Sub Machines Accessed 6 | . 5 1 . Terminals 5 | . 5 . . Fabricators . | . . . . Repair Stations . | . . . . Recycling Units . | . . . . Scanalyzers . | . . . . Garrison Access . | . . . . Total Hacks 8 | . 7 1 . Successful 6 | . 5 1 . Failed 2 | . 2 . . Catastrophic . | . . . . Database Lockouts . | . . . . Manual 1 | . 1 . . Terminals 7 | . 7 . . Fabricators . | . . . . Repair Stations . | . . . . Recycling Units . | . . . . Scanalyzers . | . . . . Garrison Access . | . . . . Terminal Hacks 6 | . 5 1 . Open Door 1 | . . 1 . Branch Access Points 1 | . 1 . . Emergency Access Points 1 | . 1 . . Surveillance Status 1 | . 1 . . Hauler Manifests 1 | . 1 . . Zone Layout 1 | . 1 . . Fabricator Hacks . | . . . . Repair Station Hacks . | . . . . Recycling Unit Hacks . | . . . . Scanalyzer . | . . . . Garrison Access Hacks . | . . . . Unauthorized Hacks . | . . . . Terminals . | . . . . Fabricators . | . . . . Repair Stations . | . . . . Recycling Units . | . . . . Scanalyzers . | . . . . Garrison Access . | . . . . Data Cores Recovered . | . . . . Used . | . . . . Hacking Detections 2 | . 2 . . Full Trace Events . | . . . . Feedback Events . | . . . . Feedback Blocked . | . . . . Robot Schematics Acquired . | . . . . Robots Built . | . . . . Authchips . | . . . . Time . | . . . . Total Robot Build Rating . | . . . . Part Schematics Acquired . | . . . . Parts Built . | . . . . Authchips . | . . . . Time . | . . . . Total Part Build Rating . | . . . . Part Studies Acquired . | . . . . Parts Repaired . | . . . . Time . | . . . . Parts Recycled . | . . . . Recycled Matter . | . . . . Retrieved Matter . | . . . . Retrieved Components . | . . . . Parts Scanalyzed . | . . . . Part Schematics Acquired . | . . . . Parts Damaged . | . . . . Bothacking | -11 -10 -10 -10 ------------ Run | Yrd Mat Min Sub Used RIF Installer . | . . . . Robots Hacked 1 | . 1 . . Non-combat 1 | . 1 . . Combat . | . . . . Robot Hacks Applied 2 | . 2 . . parse_system 1 | . 1 . . no_distress 1 | . 1 . . Relay Couplers Released . | . . . . Fabnet Peak Effective % . | . . . . Robots Rewired . | . . . . Allies Hacked . | . . . . Hacks Repelled . | . . . . Allies | -11 -10 -10 -10 -------- Run | Yrd Mat Min Sub Total Allies . | . . . . Largest Group . | . . . . Highest-Rated Group . | . . . . Highest-Rated Ally . | . . . . Total Orders . | . . . . Ally Attacks . | . . . . Total Damage . | . . . . Kills . | . . . . Allies Corrupted . | . . . . Allies Melted . | . . . . Intel | -11 -10 -10 -10 ------- Run | Yrd Mat Min Sub Active Infowar (turns) 580 | 33 403 144 . Seismic 580 | 33 403 144 . Robot Analysis Total . | . . . . Derelict Logs Recovered . | . . . . Drone Launches . | . . . . Drone Recoveries . | . . . . Exploration | -11 -10 -10 -10 ------------- Run | Yrd Mat Min Sub Turns Passed 1028 | 80 403 284 261 Spaces Moved 689 | 49 274 190 176 Core 23 | 4 . . 19 Treads . | . . . . Legs 366 | . 19 190 157 Wheels 300 | 45 255 . . Hover . | . . . . Flight . | . . . . Fastest Speed 50 | 50 100 120 120 Average Speed 111 | 95 101 120 123 Slowest Speed 190 | 100 190 120 150 Overloaded Moves . | . . . . Propulsion Burnouts . | . . . . Robots Hopped . | . . . . Potential Cave-ins . | . . . . Cave-ins Triggered . | . . . . Exploration Rate (%) 31 | 3 48 56 18 Regions Visited 3 Branch Regions 2 Pre-discovered Areas . | . . . . Known Exits Taken 1 | . 1 . . Unknown Exits Taken 2 | 1 . 1 . Scrap Searched . | . . . . Spaces Dug . | . . . . Terrain Destroyed . | . . . . Melee . | . . . . Projectile . | . . . . AOE . | . . . . Terrain Rammed . | . . . . Walls Destroyed . | . . . . Machines Disabled . | . . . . Actions | -11 -10 -10 -10 --------- Run | Yrd Mat Min Sub Total 843 | 67 360 218 198 Wait 53 | . 45 4 4 Move 686 | 48 273 189 176 Hop . | . . . . Pick Up 14 | 3 8 3 . Fast Attach 10 | 7 2 . 1 Attach 2 | . . . 2 Detach . | . . . . Swap 12 | 1 5 4 2 Drop 7 | 1 3 3 . Fire 54 | 7 21 15 11 Melee 4 | . 3 . 1 Ram 1 | . . . 1 Kick . | . . . . Crush . | . . . . Escape Stasis . | . . . . Rewire . | . . . . Trap . | . . . . Miscellaneous . | . . . . Route ------- -11/Scrapyard -10/Materials (discovered 3 exits: [*Mat] / *Min x2) -10/Mines -10/Subcaves History --------- Turn | Location | Event 21 | -11/Scrapyard | Discovered new exit (range 16) 81 | -11/Scrapyard | Entered Materials 96 | -10/Materials | Identified exit to Mines 256 | -10/Materials | Discovered new exit (range 3) 310 | -10/Materials | Build established: Mutant 484 | -10/Materials | Entered Mines 516 | -10/Mines | Assembled infested the area 521 | -10/Mines | Assisted by a Guerilla fighting off Assembled 548 | -10/Mines | Met a Derelict bent on vengeance 659 | -10/Mines | Met a Derelict shopkeep closing up shop 752 | -10/Mines | Discovered new exit (range 15) 768 | -10/Mines | Entered Subcaves 865 | -10/Subcaves | A swath of the cavern ceiling suddenly collapsed 876 | -10/Subcaves | Ambushed by Subdwellers from Twisted Machinery 978 | -10/Subcaves | Core integrity fell below 50% 1009 | -10/Subcaves | Core integrity fell below 20% 1019 | -10/Subcaves | Lost 3 parts (2n1w) 1029 | -10/Subcaves | Destroyed by GX-5QG(R) with Subdweller Laser Last Messages --------------- 00905_ Command string: shutdown 00905_ No effect. 00946_ ZX-9OC(u) builds Twisted Machinery. 00980_ Critical hit (Destroy). 00980_ Aluminum Leg destroyed. 00984_ Med. Laser destroyed. 00988_ Aluminum Leg destroyed. 00991_ S-10 Pest suffers critical hit (Destroy). 00991_ Destroyed Flight Unit. 00993_ S-10 Pest destroyed. 00993_ Switching to secondary target: Y-45 Defender. 00996_ Y-45 Defender destroyed. 01003_ Heat Sink fries itself beyond repair. 01006_ Beam Rifle fries itself beyond repair. 01009_ Lgt. Armor Plating fries itself beyond repair. 01010_ Lgt. Treads fries itself beyond repair. 01011_ Acquired 46 matter. 01012_ System corrupted: Matter fused (-5). 01012_ Acquired 5 matter. 01024_ Slammed into DY-GCD(R). Map ----- +----------------------------------------------------+ | ?????????????????????????????????????????????????? | | ?????????????????????????????????????????????????? | | ?????????????????????????????????????????????????? | | ?????????????????????????????????????????????????? | | ?????????????????????????????????????????????????? | | ?????????????????????????????????????????????????? | | ?????????????????????????????????????????????????? | | ???????????????????????????? ????????????????????? | | ?????????????????????????? ?????????????????????? | | ?????????????????????????? ?????????????????????? | | ????????????????????????? ?????????????????????? | | ????????????????????????? ?????????????????????? | | ????????????????????????? #?????????????????????? | | ????????????????????????? ?????????????????????? | | #???????????????????????? #?????????????????????? | | ##??????????????????###?? ##????????????????????? | | #?????####?????????# ##? ##???????????????????? | | #?????## ####?###??# ## #???????????????????? | | #?????# # ### #### ## #????????????????????? | | #????## ## ##???????????????????? | | ####?# #??????#????????????? | | ### #### % #?#? #????????????? | | # # ## # # # ?????????? | | # ????????? | | ### ?????????? | | ## ### #### ## %@ # # # ###??????????? | | #### ##?###??# ####R #?##????????????????? | | ???# ##?????### ##R% #???????????????????? | | ???# ##?????## R #???????????????????? | | ???## ##?????# #???????????????????? | | ????# #?????## #### ######???????????????????? | | ????####??????#####???###????????????????????????? | | ?????????????????????????????????????????????????? | | ?????????????????????????????????????????????????? | | ?????????????????????????????????????????????????? | | ?????????????????????????????????????????????????? | | ?????????????????????????????????????????????????? | | ?????????????????????????????????????????????????? | | ?????????????????????????????????????????????????? | | ?????????????????????????????????????????????????? | | ?????????????????????????????????????????????????? | | ?????????????????????????????????????????????????? | | ?????????????????????????????????????????????????? | | ?????????????????????????????????????????????????? | | ?????????????????????????????????????????????????? | | ?????????????????????????????????????????????????? | | | | | | | | | +----------------------------------------------------+ Best States ------------- Heat Dissipation 35 Energy Generation 10 Energy Capacity 250 Matter Stores 300 Matter Capacity 300 Sight Range 16 Terrain Scan Density 10 Resistance: KI 20 Resistance: TH 20 Resistance: EX 20 Resistance: EM 20 Resistance: I 20 Resistance: S 20 Resistance: P 20 Evasion (%) 55 Offensive Hacking 10 Item Schematics ----------------- None Robot Schematics ------------------ None Fabricated ------------ Nothing Repaired ---------- Nothing Studied --------- None Alien Tech Used ----------------- None Achievements -------------- Junior Dev Challenges ------------ None Game ------ Seed ArmorSapperRigger Manual? 0 Play Time 00:18:05 Cumulative 73.1 hours Start 2026.01.29 @ 18:24:13 End 2026.01.29 @ 18:40:13 Sessions 1 Manual Loads 0 Difficulty Adventurer Special Mode None Game No. 115 Rogue 87 Adventurer 26 Explorer 2 Win Type - Total 0 Types 0/0/0/0/0/0/0/0/0/0 Lore% 13 Gallery% 35 Achievement% 22 Wizard Run 0 Options --------- Layout 0 ASCII 0 Keyboard 0 Movement Mouse Keybinds 0 Fullscreen 1 Font 18/SmallcapsGlow Map View 38x25 Zoom Use 94% Tactical HUD 1 Map Filters NONE Filters NONE Steam 1 RUN: 43ccddcd-b160-4c67-9897-3a7b6d7422ef